bitfinex-derivatives/quotes_ETHF0:USTF0_20240910
["timestamp","ask_amount","ask_price","bid_price","bid_amount"]
[1725972318367,0.3746,2361.1,2361.0,3.06352]
[1725972318562,0.3746,2361.1,2361.0,3.7254596]
[1725972318760,0.3746,2361.1,2361.0,3.06352]
[1725972318761,1.48337007,2361.1,2361.0,3.06352]
[1725972318961,1.48337007,2361.1,2361.0,43.86352]
[1725972319157,1.48337007,2361.1,2361.0,43.44]
[1725972319372,1.48337007,2361.1,2361.0,43.86352]
[1725972319563,0.3746,2361.1,2361.0,43.86352]
[1725972320065,1.48337007,2361.1,2361.0,43.44]
[1725972322268,0.3746,2361.1,2361.0,43.44]
[1725972322976,0.3746,2361.1,2361.0,40.8]
[1725972323177,0.3746,2361.1,2360.6,0.35532928]
[1725972323178,12.27295983,2361.1,2360.5,2.739]
[1725972323370,1.52992139,2360.9,2360.5,3.0636]
[1725972323563,1.52992139,2360.9,2360.6,41.22359]
[1725972323564,0.4016,2360.8,2360.6,41.22359]
[1725972323780,0.4016,2360.8,2360.7,0.42358]
[1725972324076,0.3715,2360.7,2360.6,41.22359]
[1725972325373,0.4016,2360.8,2360.6,41.22359]
[1725972325674,0.7731,2360.8,2360.7,2.64]
[1725972327776,0.7731,2360.8,2360.7,3.06358]
[1725972327969,0.4026,2361.0,2360.9,0.42354]
[1725972328166,0.796,2361.0,2360.9,3.06354]
[1725972328579,0.796,2361.0,2360.8,2.64]
[1725972328773,0.42356,2360.8,2360.6,43.44]
[1725972329073,0.42358,2360.7,2360.6,43.44]
[1725972329268,0.3651,2360.7,2360.6,43.44]
[1725972329473,0.3651,2360.7,2360.6,43.86359]
[1725972334377,0.78868,2360.7,2360.6,41.22359]
[1725972334581,0.42359,2360.6,2360.5,0.4236]
[1725972334880,0.4005,2360.6,2360.5,0.4236]
[1725972335274,0.82409,2360.6,2360.4,3.06362]
[1725972335484,0.4019,2360.5,2360.4,3.06363]
[1725972341384,0.4019,2360.5,2360.4,0.42363]
[1725972343974,0.82551,2360.5,2360.4,0.42363]
[1725972344177,0.4019,2360.5,2360.4,0.42363]
[1725972346784,0.4019,2360.5,2360.3,40.8]
[1725972346785,0.42363,2360.4,2360.3,40.8]
[1725972347091,0.42365,2360.4,2360.3,0.42365]
[1725972350279,0.80415,2360.4,2360.3,0.42365]
[1725972350475,0.3805,2360.4,2360.1,40.8]
[1725972350682,0.42365,2360.3,2360.2,0.42365]
[1725972350881,0.80414,2360.4,2360.2,0.42365]
[1725972351884,0.3805,2360.4,2360.3,0.42365]
[1725972352087,0.3805,2360.4,2360.3,1.64365]
[1725972354292,0.80413,2360.4,2360.3,1.22]
[1725972354788,0.3805,2360.4,2360.3,1.64365]
[1725972354994,0.80413,2360.4,2360.2,1.64366]
[1725972356791,0.80413,2360.4,2360.3,0.42365]
[1725972359599,0.3805,2360.4,2360.3,0.42365]
[1725972359793,0.3805,2360.4,2360.3,1.64365]
[1725972360793,1.10637139,2360.7,2360.6,0.42359]
[1725972361000,1.10637139,2360.7,2360.6,1.64359]
[1725972361199,1.10637139,2360.7,2360.6,1.22]
[1725972361395,1.89554139,2360.8,2360.6,1.64359]
[1725972361699,1.89554139,2360.8,2360.6,1.22]
[1725972361700,1.52995139,2360.7,2360.6,1.22]
[1725972361899,1.89615139,2360.7,2360.5,1.6436]
[1725972362102,1.10637139,2360.6,2360.5,1.22]
[1725972362294,2.08312316,2360.6,2360.5,1.22]
[1725972362495,2.08313316,2360.6,2360.4,0.42362]
[1725972362807,1.49975207,2360.5,2360.4,0.42362]
[1725972363099,1.49975207,2360.5,2360.3,0.42364]
[1725972363399,1.49975207,2360.5,2360.3,0.42365]
[1725972363400,1.65953316,2360.4,2360.3,0.42365]
[1725972363600,1.87143082,2360.4,2360.3,0.42365]
[1725972364295,2.60904644,2360.5,2360.4,0.42363]
[1725972364604,1.10911471,2360.5,2360.4,0.42363]
[1725972364808,1.6637458,2360.6,2360.5,0.42361]
[1725972365104,1.6637458,2360.6,2360.5,2.3057113]
[1725972365105,1.10912419,2360.6,2360.5,2.3057113]
[1725972365307,1.10912419,2360.7,2360.6,0.42359]
[1725972365605,1.10929305,2360.7,2360.6,5.3216913]
[1725972366301,1.6637458,2360.7,2360.6,5.3216913]
[1725972366500,1.6637458,2360.7,2360.6,4.8981013]
[1725972366799,2.21754644,2360.9,2360.8,0.42356]
[1725972366998,2.21754644,2360.9,2360.8,1.64356]
[1725972367205,2.42939122,2360.9,2360.8,1.64356]
[1725972367502,2.42939122,2360.9,2360.8,2.30556645]
[1725972367503,2.4293883,2360.9,2360.8,2.30556645]
[1725972367714,1.87615932,2360.9,2360.8,12.93847]
[1725972368005,1.10952917,2361.1,2361.0,0.42352]
[1725972368205,1.10952917,2361.2,2361.1,0.42351]
[1725972368410,1.10952917,2361.2,2361.1,5.32066333]
[1725972368411,1.66431746,2361.2,2361.1,5.32066333]
[1725972368703,1.66431746,2361.2,2361.1,5.32061466]
[1725972369002,1.66431746,2361.2,2361.1,4.65871]
[1725972369003,1.10911793,2361.2,2361.1,4.65871]
[1725972369200,1.10911793,2361.2,2361.1,5.32061693]
[1725972369407,1.66431746,2361.2,2361.1,5.32061693]
[1725972370104,1.66431746,2361.2,2361.1,4.65871]
[1725972370320,1.66431746,2361.2,2361.0,3.06351]
[1725972370504,1.49873778,2361.1,2361.0,3.06351]
[1725972370802,1.49873778,2361.1,2361.0,3.72545153]
[1725972371208,1.49873778,2361.1,2361.0,3.06351]
[1725972371401,1.49873778,2361.1,2360.9,3.06353]
[1725972373609,1.49873778,2361.1,2361.0,0.42352]
[1725972374300,0.3899,2361.1,2361.0,0.42352]
[1725972374697,1.47483778,2361.2,2361.1,0.42351]
[1725972374906,1.10883778,2361.4,2361.1,4.45191977]
[1725972375105,1.10883778,2361.4,2361.2,2.9874]
[1725972375408,1.10883778,2361.5,2361.4,0.42345]
[1725972375599,1.47983778,2361.6,2361.4,0.42344]
[1725972375801,1.10883778,2361.5,2361.4,0.42344]
[1725972376104,1.10883778,2361.5,2361.4,3.06344]
[1725972376607,1.47983778,2361.6,2361.4,3.06344]
[1725972376812,1.47983778,2361.6,2361.5,0.42343]
[1725972377310,1.10883778,2361.7,2361.6,0.42342]
[1725972377605,2.21754644,2361.9,2361.7,0.4234]
[1725972377606,1.10883778,2361.9,2361.7,0.4234]
[1725972378198,1.10883778,2361.9,2361.6,2.64]
[1725972378199,1.10883778,2361.9,2361.6,3.0634]
[1725972378403,1.85023778,2362.0,2361.8,2.64]
[1725972378602,1.10883778,2362.2,2362.0,0.42334]
[1725972378809,1.10883778,2362.2,2362.0,3.06334]
[1725972378810,0.746,2362.2,2362.0,3.06334]
[1725972379604,0.746,2362.2,2362.1,0.42333]
[1725972380795,0.3704,2362.2,2362.1,4.65693]
[1725972382408,0.3704,2362.2,2362.0,3.06333]
[1725972382598,0.3704,2362.2,2362.1,0.42333]
[1725972383002,0.3704,2362.2,2362.0,3.06333]
[1725972383209,0.3704,2362.2,2361.9,3.06335]
[1725972385113,0.3704,2362.2,2362.0,0.42334]
[1725972386407,0.3704,2362.2,2361.9,2.64]
[1725972386615,0.3704,2362.2,2362.1,2.64]
[1725972387112,0.3704,2362.2,2362.1,3.06333]
[1725972387615,0.3704,2362.2,2362.1,2.64]
[1725972388217,0.3704,2362.2,2362.1,3.06333]
[1725972390622,0.099,2362.9,2362.1,13.9319]
[1725972390807,0.7539,2362.8,2362.7,3.06322]
[1725972391008,1.10883778,2363.6,2362.7,2.64]
[1725972391310,1.20783778,2363.9,2363.1,1.05786]
[1725972391509,2.75639563,2364.3,2363.1,1.05786]
[1725972391510,0.82107487,2364.5,2364.2,0.42294]
[1725972391824,3.30760904,2365.2,2364.2,0.42294]
[1725972391825,2.21754644,2365.3,2364.4,0.42291]
[1725972392120,0.3701,2365.1,2363.9,0.42299]
[1725972392306,0.3701,2365.1,2363.5,0.214]
[1725972392307,2.64,2364.7,2363.5,0.214]
[1725972392517,0.3737,2364.6,2364.0,2.64]
[1725972392816,3.0261,2364.5,2363.8,0.21504147]
[1725972393011,0.3861,2364.5,2363.8,2.85504147]
[1725972393319,0.3861,2364.5,2364.4,2.64]
[1725972393514,0.3737,2364.6,2364.4,2.64]
[1725972393821,0.3737,2364.6,2364.2,2.64]
[1725972394417,2.64,2364.4,2363.4,0.42309]
[1725972394631,0.3701,2364.3,2363.5,2.64]
[1725972394922,0.79304,2364.3,2363.5,2.64]
[1725972395120,2.64,2364.2,2363.5,2.64]
[1725972395521,2.64,2364.0,2363.3,2.64]
[1725972395818,0.7432,2363.9,2363.2,2.739]
[1725972396018,3.06303,2363.8,2363.2,2.64]
[1725972396220,2.64,2363.8,2363.2,2.64]
[1725972396421,0.42307,2363.6,2363.0,0.099]
[1725972396616,2.64,2363.7,2363.0,2.64]
[1725972396814,3.06304,2363.7,2363.0,2.64]
[1725972397208,0.42306,2363.6,2363.0,2.64]
[1725972397414,0.3751,2363.5,2363.0,2.64]
[1725972397813,0.3694,2363.4,2363.0,2.64]
[1725972398818,0.42312,2363.3,2362.8,2.64]
[1725972399016,0.4023,2363.2,2362.6,43.44]
[1725972399508,0.82544,2363.2,2362.6,43.86323]
[1725972399710,0.42315,2363.1,2362.6,43.44]
[1725972400121,0.42315,2363.1,2362.4,2.64]
[1725972400122,2.64,2363.1,2362.4,2.64]
[1725972400348,2.64,2362.9,2362.2,2.64]
[1725972400617,2.64,2362.5,2362.0,0.099]
[1725972400823,0.42332,2362.2,2361.6,3.16241]
[1725972401010,0.42332,2362.2,2361.3,4.082]
[1725972401011,2.64,2362.2,2361.4,2.739]
[1725972401316,2.2111,2362.4,2361.3,0.42347]
[1725972401317,0.42339,2361.8,2361.3,0.42347]
[1725972401520,0.42339,2361.8,2361.2,2.64]
[1725972401521,0.3645,2361.7,2361.2,2.64]
[1725972401816,0.3645,2361.7,2361.6,2.64]
[1725972402224,0.3645,2361.7,2361.4,0.42343]
[1725972402411,0.3645,2361.7,2361.3,3.25]
[1725972402815,0.3645,2361.7,2361.0,44.05]
[1725972403020,0.4028,2361.6,2361.0,40.8]
[1725972403219,0.3889,2361.5,2361.1,0.4235]
[1725972403720,0.81235,2361.5,2361.0,41.22351]
[1725972403919,0.81235,2361.5,2361.1,0.4235]
[1725972404228,0.3889,2361.5,2361.1,0.4235]
[1725972404725,0.3889,2361.5,2361.0,40.8]
[1725972404726,0.42346,2361.4,2361.0,40.8]
[1725972404923,0.42348,2361.3,2361.0,40.8]
[1725972405421,4.2352,2361.2,2360.7,0.42356]
[1725972405621,3.6389,2361.5,2360.2,3.463]
[1725972405824,3.6389,2361.5,2360.5,0.4236]
[1725972405825,1.05869,2361.3,2360.5,0.4236]
[1725972406126,1.05868,2361.3,2360.4,0.42362]
[1725972406314,1.05868,2361.3,2359.7,1.62573066]
[1725972406315,3.25,2361.1,2360.0,0.213]
[1725972406515,1.42822,2361.0,2360.2,0.42366]
[1725972406720,0.42362,2360.5,2360.1,40.8]
[1725972406926,3.25,2360.8,2360.1,40.8]
[1725972407131,0.79364,2360.4,2360.1,40.8]
[1725972407329,0.42367,2360.2,2359.7,0.42375]
[1725972407522,0.3694,2360.3,2359.4,3.46588474]
[1725972407719,0.4237,2360.1,2359.6,0.42377]
[1725972408123,0.3694,2360.3,2359.5,40.8]
[1725972408419,0.42369,2360.1,2359.6,0.42377]
[1725972408621,0.42367,2360.2,2359.7,0.42375]
[1725972408819,0.3694,2360.3,2359.5,40.8]
[1725972409025,0.3694,2360.3,2360.0,0.4237]
[1725972409227,0.79306,2360.3,2359.8,0.42373]
[1725972409824,0.42368,2360.2,2359.7,0.42375]
[1725972410026,0.42368,2360.2,2359.8,0.42373]
[1725972410217,0.42368,2360.2,2359.7,0.42375]
[1725972411224,0.79306,2360.3,2359.8,0.42374]
[1725972411626,0.42367,2360.2,2359.7,0.42375]
[1725972412420,0.3694,2360.3,2359.5,40.8]
[1725972412629,0.3694,2360.3,2359.8,0.42373]
[1725972412630,0.79306,2360.3,2359.8,0.42373]
[1725972413029,0.42367,2360.2,2359.8,0.42373]
[1725972413220,0.3694,2360.3,2359.5,40.8]
[1725972413532,0.79306,2360.3,2359.8,0.42373]
[1725972413725,0.3694,2360.3,2359.5,40.8]
[1725972413932,0.3694,2360.3,2360.0,0.4237]
[1725972414117,0.3694,2360.3,2359.9,0.42371]
[1725972414333,0.79305,2360.3,2359.5,40.8]
[1725972414824,0.3694,2360.3,2359.9,0.42371]
[1725972415220,0.37,2360.4,2359.7,3.25]
[1725972415919,0.79364,2360.4,2359.7,3.25]
[1725972416123,0.79364,2360.4,2359.9,0.42371]
[1725972416325,0.37,2360.4,2359.8,0.42374]
[1725972416534,0.37,2360.4,2359.5,40.8]
[1725972416535,0.42369,2360.1,2359.5,40.8]
[1725972416835,0.42371,2360.0,2359.5,40.8]
[1725972417037,0.42371,2360.0,2359.6,0.42377]
[1725972417225,1.42846,2360.3,2359.5,40.8]
[1725972417226,0.42369,2360.1,2359.5,40.8]
[1725972417429,0.42369,2360.1,2359.6,0.42377]
[1725972417734,0.42369,2360.1,2359.7,0.42375]
[1725972417936,0.42369,2360.1,2359.7,0.42374]
[1725972418235,0.42367,2360.2,2359.8,0.42373]
[1725972418639,0.42371,2360.0,2359.6,0.42377]
[1725972419237,0.42375,2359.8,2359.3,4.082]
[1725972419534,0.3693,2360.3,2358.9,6.923]
[1725972419535,1.05947,2359.6,2358.9,4.082]
[1725972419733,1.05947,2359.6,2358.9,45.30589]
[1725972420035,1.05947,2359.6,2358.9,45.3059]
[1725972420036,0.42382,2359.4,2358.9,45.3059]
[1725972420245,1.05953,2359.4,2358.9,40.8]
[1725972420534,0.7551,2359.5,2359.0,0.42388]
[1725972420732,0.7551,2359.5,2359.1,0.42386]
[1725972420922,1.1789,2359.5,2359.0,0.42387]
[1725972421127,1.17891,2359.5,2359.0,0.42387]
[1725972421336,0.7551,2359.5,2359.0,0.42387]
[1725972421543,0.7551,2359.5,2358.9,40.8]
[1725972421842,0.42386,2359.2,2358.7,0.42393]
[1725972422028,0.42384,2359.3,2358.5,4.082]
[1725972422227,0.42384,2359.3,2358.8,0.42391]
[1725972422427,0.7551,2359.5,2358.8,0.42391]
[1725972422738,0.7551,2359.5,2358.9,3.25]
[1725972422947,0.3649,2359.5,2359.1,0.42386]
[1725972423436,0.3649,2359.5,2359.2,0.42385]
[1725972423635,0.3649,2359.5,2358.9,3.25]
[1725972423839,0.78869,2359.5,2359.0,0.42388]
[1725972424134,0.42385,2359.2,2358.6,44.05]
[1725972424340,0.3649,2359.5,2358.6,44.05]
[1725972424341,0.42389,2359.0,2358.6,40.8]
[1725972424928,0.4239,2358.9,2358.4,0.42398]
[1725972425130,1.42702,2359.3,2358.3,7.332]
[1725972425335,0.42387,2359.1,2358.6,0.42395]
[1725972425740,1.42702,2359.3,2358.4,40.8]
[1725972426038,0.42388,2359.1,2358.5,0.42397]
[1725972426241,0.42389,2359.0,2358.5,0.42397]
[1725972426429,0.4239,2358.9,2358.5,0.42397]
[1725972426635,0.4239,2358.9,2358.4,40.8]
[1725972426836,0.42391,2358.9,2358.4,41.22398]
[1725972427044,0.4239,2358.9,2358.4,41.22398]
[1725972427245,1.05962,2359.2,2358.4,40.8]
[1725972427447,0.3674,2359.3,2358.1,3.25]
[1725972427746,1.05967,2359.1,2358.3,0.42399]
[1725972427944,1.05967,2359.1,2358.3,40.8]
[1725972428149,0.42395,2358.7,2358.3,40.8]
[1725972428546,0.42393,2358.8,2358.3,40.8]
[1725972428742,0.3732,2359.0,2358.4,0.42398]
[1725972429054,0.42391,2358.9,2358.4,0.42398]
[1725972429944,0.4239,2358.9,2358.5,0.42397]
[1725972430147,0.79709,2359.0,2358.5,0.42397]
[1725972430964,4.59688,2359.1,2358.3,44.05]
[1725972431172,0.3674,2359.3,2358.9,0.42389]
[1725972431468,0.3674,2359.3,2358.6,3.25]
[1725972431469,0.3649,2359.5,2358.7,1.05985]
[1725972431667,0.7887,2359.5,2359.1,0.42386]
[1725972432063,0.42382,2359.4,2358.6,4.30987]
[1725972432264,0.42381,2359.4,2358.6,1.05987]
[1725972432474,0.3649,2359.5,2359.2,0.42383]
[1725972432768,0.3649,2359.5,2358.8,1.0598]
[1725972432769,0.3649,2359.5,2359.3,0.42381]
[1725972432963,0.3649,2359.5,2359.2,0.42383]
[1725972433165,0.78869,2359.5,2359.1,0.42385]
[1725972433371,0.42382,2359.4,2359.0,0.42387]
[1725972433569,0.42385,2359.2,2358.8,0.4239]
[1725972433766,0.3836,2359.3,2358.9,0.42389]
[1725972434068,0.42385,2359.2,2358.8,0.42391]
[1725972434266,0.42385,2359.2,2358.5,5.14192]
[1725972434267,0.3836,2359.3,2358.5,4.082]
[1725972434475,0.3836,2359.3,2358.4,3.25]
[1725972434781,0.754,2359.3,2358.6,0.42394]
[1725972434968,0.42388,2359.0,2358.6,0.42394]
[1725972435474,0.42391,2358.9,2358.5,0.42396]
[1725972435871,0.42391,2358.9,2358.3,44.882]
[1725972435872,1.05967,2359.1,2358.3,40.8]
[1725972436091,0.80523,2358.8,2358.4,0.42398]
[1725972436583,0.80522,2358.8,2358.4,0.42398]
[1725972437473,0.42387,2359.1,2358.4,3.25]
[1725972437673,0.3709,2359.2,2358.4,3.25]
[1725972437978,0.3709,2359.2,2359.1,0.42386]
[1725972438176,0.3709,2359.2,2358.7,1.05985]
[1725972438177,0.42376,2359.7,2358.7,1.05985]
[1725972438384,0.42381,2359.5,2358.6,3.25]
[1725972438578,1.05941,2359.7,2358.6,3.25]
[1725972438884,0.4238,2359.5,2359.0,0.42387]
[1725972439184,11.2501732,2359.7,2359.2,0.42384]
[1725972439482,0.3709,2359.8,2358.9,3.25]
[1725972439780,0.3709,2359.8,2358.4,2.11991]
[1725972439781,1.05954,2359.4,2358.3,0.213]
[1725972439980,0.42387,2359.1,2358.7,0.42393]
[1725972440281,0.42388,2359.0,2358.6,0.42394]
[1725972440868,0.42389,2359.0,2358.6,0.42394]
[1725972442481,0.42391,2358.9,2358.5,0.42396]
[1725972442781,0.42389,2359.0,2358.6,0.42395]
[1725972442971,1.45949,2359.1,2358.1,3.25]
[1725972443175,0.42393,2358.8,2358.4,0.42398]
[1725972443479,0.42396,2358.6,2358.3,0.424]
[1725972443677,0.42396,2358.6,2358.2,0.42401]
[1725972443883,0.81614,2358.7,2358.0,1.06015]
[1725972444182,0.81614,2358.7,2358.3,0.424]
[1725972444377,0.3922,2358.7,2358.2,0.42402]
[1725972444583,0.42397,2358.6,2358.2,0.42402]
[1725972444883,0.42396,2358.6,2358.2,0.42402]
[1725972445473,0.42396,2358.6,2358.3,0.424]
[1725972446076,0.42396,2358.6,2357.8,45.11023]
[1725972446077,0.424,2358.4,2358.1,0.42404]
[1725972446276,0.3916,2358.3,2357.8,40.8]
[1725972446483,0.81561,2358.3,2358.0,0.42405]
[1725972446677,0.81561,2358.3,2357.8,40.8]
[1725972446678,0.3916,2358.3,2357.8,40.8]
[1725972446979,0.3916,2358.3,2357.8,41.86022]
[1725972447186,0.3916,2358.3,2358.1,0.42403]
[1725972447381,0.3916,2358.3,2358.2,0.42403]
[1725972447777,0.3916,2358.3,2357.8,45.11022]
[1725972447778,0.3916,2358.3,2358.0,0.42404]
[1725972447979,0.81562,2358.3,2357.8,40.8]
[1725972448276,0.81562,2358.3,2358.0,0.42406]
[1725972448986,0.3916,2358.3,2358.1,0.42403]
[1725972449582,0.81562,2358.3,2357.8,40.8]
[1725972449783,0.42403,2358.2,2357.9,0.42407]
[1725972450480,0.82583,2358.2,2357.9,0.42407]
[1725972451480,0.4018,2358.2,2358.0,0.42405]
[1725972451881,0.82583,2358.2,2358.0,0.42405]
[1725972452087,0.82583,2358.2,2357.9,0.42407]
[1725972452388,0.4018,2358.2,2357.6,40.8]
[1725972452881,0.42405,2358.1,2357.8,0.42409]
[1725972453086,0.42405,2358.1,2357.6,40.8]
[1725972453286,0.42405,2358.1,2357.8,0.42408]
[1725972453592,0.82584,2358.2,2357.9,0.42407]
[1725972453996,0.42405,2358.1,2357.8,0.42409]
[1725972454489,0.82584,2358.2,2357.9,0.42408]
[1725972454790,0.42405,2358.1,2357.9,0.42408]
[1725972455390,0.82584,2358.2,2357.9,0.42408]
[1725972455787,0.82583,2358.2,2358.0,0.42406]
[1725972456280,0.4018,2358.2,2358.1,0.42404]
[1725972456485,0.4018,2358.2,2357.7,1.06028]
[1725972456891,0.4018,2358.2,2358.0,0.42405]
[1725972457891,0.82583,2358.2,2358.0,0.42405]
[1725972458096,0.4018,2358.2,2358.0,0.42405]
[1725972458697,0.4018,2358.2,2357.8,1.06025]
[1725972458998,0.4018,2358.2,2357.7,1.0603]
[1725972459391,0.82583,2358.2,2358.0,0.42406]
[1725972459592,0.4018,2358.2,2358.0,0.42406]
[1725972459993,0.82583,2358.2,2358.0,0.42406]
[1725972460399,0.4018,2358.2,2358.0,0.42406]
[1725972460601,0.81562,2358.3,2357.7,1.0603]
[1725972460602,0.3916,2358.3,2357.8,1.06025]
[1725972460903,0.81561,2358.3,2358.0,0.42405]
[1725972461287,0.3916,2358.3,2358.1,0.42403]
[1725972461493,0.3916,2358.3,2358.2,0.42403]
[1725972461687,0.3916,2358.3,2358.1,0.42403]
[1725972462293,0.42403,2358.2,2357.9,0.42406]
[1725972462698,0.4036,2358.1,2357.9,0.42406]
[1725972463000,0.82765,2358.1,2357.8,0.42408]
[1725972463504,0.82765,2358.1,2357.8,0.42409]
[1725972465211,1.22055,2358.1,2357.9,0.42408]
[1725972465910,0.7965,2358.1,2357.9,0.42408]
[1725972466106,0.7965,2358.1,2358.0,0.42406]
[1725972466301,0.4036,2358.1,2358.0,0.42406]
[1725972468012,0.4036,2358.1,2357.6,44.51033]
[1725972468317,0.82765,2358.1,2357.9,0.42407]
[1725972468707,0.82765,2358.1,2357.8,0.42408]
[1725972469001,0.4036,2358.1,2357.8,0.42408]
[1725972469210,0.82766,2358.1,2357.6,43.45]
[1725972469417,0.82766,2358.1,2357.8,0.42409]
[1725972469611,0.4036,2358.1,2357.9,0.42407]
[1725972469817,0.4036,2358.1,2358.0,0.42406]
[1725972471409,0.4036,2358.1,2357.6,44.51033]
[1725972471811,0.82765,2358.1,2357.6,44.51033]
[1725972472014,0.82765,2358.1,2357.9,0.42408]
[1725972472211,0.82765,2358.1,2357.6,44.51033]
[1725972472415,0.82765,2358.1,2357.9,0.42408]
[1725972476927,0.4036,2358.1,2358.0,0.42406]
[1725972480022,2.05946179,2358.1,2358.0,0.42406]
[1725972481530,0.4036,2358.1,2358.0,0.42406]
[1725972483826,2.05946179,2358.1,2358.0,0.42406]
[1725972484025,0.4036,2358.1,2358.0,0.42406]
[1725972484327,2.05946179,2358.1,2358.0,0.42406]
[1725972484532,2.27156976,2358.1,2358.0,0.42406]
[1725972484821,0.61570797,2358.1,2358.0,0.42406]
[1725972485222,2.21754644,2358.1,2358.0,5.72502]
[1725972485417,1.66517753,2358.2,2358.1,0.42404]
[1725972485720,2.05670645,2358.3,2358.2,0.42403]
[1725972485922,2.05670645,2358.3,2358.2,2.14680154]
[1725972486226,0.3916,2358.3,2358.2,2.14706321]
[1725972486930,0.3916,2358.3,2358.2,1.08673154]
[1725972487132,0.3916,2358.3,2358.2,0.66270154]
[1725972487317,7.25084644,2358.3,2357.8,1.10018091]
[1725972487521,1.66609296,2358.0,2357.9,1.08691651]
[1725972487826,1.6661793,2358.0,2357.9,1.08691651]
[1725972488021,1.6661793,2358.1,2358.0,0.42406]
[1725972488232,1.6661793,2358.5,2358.3,1.06003]
[1725972488535,1.6661793,2358.5,2358.4,4.79731067]
[1725972488725,0.3855,2358.6,2358.5,0.42397]
[1725972488930,2.05187602,2358.6,2358.5,2.14729067]
[1725972489119,1.66637602,2358.6,2358.5,1.08680651]
[1725972489324,1.66637602,2358.6,2358.5,2.14703889]
[1725972489921,1.66637602,2358.6,2358.5,1.08680651]
[1725972490927,1.87798669,2358.6,2358.5,1.08680651]
[1725972491332,1.66593199,2358.6,2358.5,11.54298982]
[1725972491524,1.66593199,2358.7,2358.6,0.42395]
[1725972491922,0.21203932,2358.7,2358.6,0.6626223]
[1725972492119,2.21754644,2358.7,2358.4,0.42398]
[1725972492320,2.03082277,2358.6,2358.5,1.08665573]
[1725972492731,2.24287734,2358.6,2358.5,1.08665573]
[1725972493219,2.03082277,2358.6,2358.5,1.08665573]
[1725972494926,2.03082277,2358.6,2358.5,1.08664417]
[1725972495122,2.03082277,2358.6,2358.5,0.42397]
[1725972495323,1.66542277,2358.7,2358.5,0.66267079]
[1725972495629,1.66542277,2358.7,2358.6,0.42395]
[1725972496428,1.66542277,2358.7,2358.2,4.81608783]
[1725972496429,1.66542277,2358.7,2358.5,0.42397]
[1725972496630,0.378,2358.6,2358.5,0.42397]
[1725972496825,0.378,2358.6,2358.5,1.08665284]
[1725972497422,0.378,2358.6,2358.5,0.42397]
[1725972497623,0.378,2358.6,2358.5,1.08663348]
[1725972497819,0.378,2358.6,2358.5,0.42397]
[1725972499025,0.378,2358.6,2358.4,0.42398]
[1725972499229,2.44752277,2358.6,2358.4,0.42398]
[1725972499630,2.44752277,2358.6,2358.2,2.65]
[1725972499937,0.7821,2358.6,2358.4,0.42398]
[1725972500125,2.44752277,2358.6,2358.4,0.42398]
[1725972501530,2.44752277,2358.6,2358.5,0.42397]
[1725972501531,0.7821,2358.6,2358.5,0.42397]
[1725972504434,0.7821,2358.6,2358.0,3.75603783]
[1725972504626,1.66542277,2358.4,2358.1,0.66269007]
[1725972504828,0.3915,2358.3,2357.8,7.79224]
[1725972505032,0.3915,2358.3,2358.1,0.42403]
[1725972505236,0.3915,2358.3,2358.2,0.42403]
[1725972505539,0.3915,2358.3,2358.2,3.73673237]
[1725972505733,0.7821,2358.6,2358.2,7.97753237]
[1725972505934,0.7821,2358.6,2358.4,2.65]
[1725972506433,0.7821,2358.6,2358.5,0.42397]
[1725972507138,0.378,2358.6,2358.5,0.42397]
[1725972507535,0.378,2358.6,2358.5,0.63424898]
[1725972507839,0.378,2358.6,2358.3,0.424]
[1725972508039,0.378,2358.6,2358.0,2.16617783]
[1725972508040,2.04342277,2358.6,2358.0,4.81617783]
[1725972508229,2.04342277,2358.6,2358.3,0.424]
[1725972508536,2.04342277,2358.6,2358.4,0.42399]
[1725972509036,2.08940277,2358.5,2358.0,2.65]
[1725972509239,2.04282277,2358.4,2358.2,0.42401]
[1725972509543,2.04282277,2358.4,2358.2,0.42402]
[1725972509544,0.3774,2358.4,2358.2,0.42402]
[1725972510138,2.04282277,2358.4,2358.2,0.42402]
[1725972510340,2.04282277,2358.4,2358.1,0.42403]
[1725972510538,2.04282277,2358.4,2357.9,4.082]
[1725972510736,2.08943277,2358.3,2357.9,0.42407]
[1725972510948,2.03302277,2358.2,2357.9,0.42407]
[1725972511150,2.43122277,2358.2,2358.0,0.42406]
[1725972511344,0.7658,2358.2,2358.0,0.42406]
[1725972511555,1.10918899,2358.1,2357.9,0.42407]
[1725972511841,1.10918899,2358.0,2357.9,0.42408]
[1725972512449,1.10918899,2358.1,2357.9,0.42408]
[1725972512648,1.10918899,2358.1,2358.0,0.42406]
[1725972514250,2.43122277,2358.2,2358.0,0.42406]
[1725972514457,1.66542277,2358.1,2357.8,0.42409]
[1725972514647,1.10938186,2358.0,2357.8,0.42409]
[1725972514844,0.3948,2357.9,2357.8,0.42409]
[1725972515149,0.3948,2357.9,2357.8,1.08695545]
[1725972516454,0.3948,2357.9,2357.8,0.66286545]
[1725972516660,1.50418186,2357.9,2357.6,40.8]
[1725972516851,1.48158186,2357.8,2357.7,0.42412]
[1725972517050,1.48158186,2357.8,2357.6,41.22412]
[1725972517255,1.50948186,2357.7,2357.6,41.22412]
[1725972517441,1.50948186,2357.7,2357.4,0.42416]
[1725972517442,2.48965277,2357.7,2357.4,0.42416]
[1725972517646,1.10957969,2357.6,2357.4,0.42416]
[1725972517852,1.10957969,2357.5,2357.4,0.42416]